Cogmind - Beta 14 @@@ ROGUE MODE // 2024.08.07 @ 16:05:15 Player: ktur Result: Destroyed by Y-45 Defender with Heavy Assault Rifle Performance ------------- Evolutions (0) 0 Regions Visited (3) 600 Robots Destroyed (18) 90 Value Destroyed (469) 469 Prototype IDs (2) 40 Alien Tech Used (0) 0 Bonus (0) 0 TOTAL SCORE: 1199 Bonus ------- None Cogmind --------- Core Integrity 0/250 Matter 300/300 Energy 95/100 System Corruption 0% Temperature Cool (9) Movement Treading (160) Location -8/Recycling Parts ------- > --- POWER (1) -------- (None) > --- PROPULSION (2) --- Light Treads Subdweller Monowheel > --- UTILITY (2) ------ Small Storage Unit > --- WEAPON (2) ------- Subdweller Beam Cannon Makeshift Sword > --- INVENTORY (8) ---- Subdweller Power Source Subdweller Monowheel Assault Rifle Battle Rifle Battle Rifle Subdweller Machine Gun Subdweller Shrapnel Launcher Dirty Datajack (20) Peak State ------------ > --- POWER ------------ Ion Engine > --- PROPULSION ------- Light Treads Light Treads > --- UTILITY ---------- Small Storage Unit Structural Scanner > --- WEAPON ----------- Subdweller Beam Cannon Makeshift Sword > --- INVENTORY -------- Subdweller Power Source Subdweller Monowheel Assault Rifle Battle Rifle Battle Rifle Subdweller Machine Gun Subdweller Shrapnel Launcher Dirty Datajack [Rating: 12] Favorites ----------- Power Ion Engine Engine Ion Engine Propulsion Light Treads Treads Light Treads Wheel Subdweller Monowheel Utility Small Storage Unit Device Seismic Detector Storage Small Storage Unit Weapon Assault Rifle Energy Gun EM Pulse Gun Energy Cannon Subdweller Beam Cannon Ballistic Gun Assault Rifle Launcher Subdweller Shrapnel Launcher Special Weapon Mining Laser Slashing Weapon Makeshift Sword Build | -11 -10 -10 -8 ------- Run | Yrd Mat Sub Rec Slots Evolved . | . . . . Power . | . . . . Propulsion . | . . . . Utility . | . . . . Weapon . | . . . . Parts Attached 20 | 7 . 13 . Power 2 | 1 . 1 . Engine 2 | 1 . 1 . Core . | . . . . Reactor . | . . . . Propulsion 3 | 2 . 1 . Treads 2 | 2 . . . Leg . | . . . . Wheel 1 | . . 1 . Hover . | . . . . Flight . | . . . . Utility 3 | 2 . 1 . Device 2 | 1 . 1 . Storage 1 | 1 . . . Processor . | . . . . Hackware . | . . . . Protection . | . . . . Artifact . | . . . . Weapon 12 | 2 . 10 . Energy Gun 1 | . . 1 . Energy Cannon 2 | . . 2 . Ballistic Gun 5 | 2 . 3 . Ballistic Cannon . | . . . . Launcher 2 | . . 2 . Special Weapon 1 | . . 1 . Impact Weapon . | . . . . Slashing Weapon 1 | . . 1 . Piercing Weapon . | . . . . Special Melee Weapon . | . . . . Unidentified Prototypes . | . . . . Parts Lost 5 | . . 4 1 Power 1 | . . . 1 Propulsion 1 | . . 1 . Utility 2 | . . 2 . Weapon 1 | . . 1 . Highest Loss Streak 2 | . . 2 1 To Critical Strikes . | . . . . Average Slot Usage (%) 92 | . 100 90 84 Engine 13 | . 14 14 13 Treads 25 | . 28 24 14 Wheel 2 | . . 3 14 Device 7 | . 14 5 . Storage 14 | . 14 14 14 Energy Cannon 6 | . . 8 14 Ballistic Gun 15 | . 28 10 . Slashing Weapon 4 | . . 5 14 Peak Build Rating 12 | 7 7 12 12 Average Rating 9 | 5 7 10 11 On Entrance 6 | . 7 7 12 Naked Turns . | . . . . Heaviest Build 27 | 15 15 27 20 Greatest Support 40 | 40 40 40 20 Greatest Overweight (x) . | . . . . Average Overweight (x) . | . . . . Largest Inventory Capacity 8 | 8 8 8 8 Average Capacity 7 | 7 8 8 8 Most Carried 8 | 6 6 8 8 Average Carried 7 | 4 6 7 8 Final Capacity 8 | 8 8 8 8 Final Carried 8 | 6 6 8 8 Class Distribution -------------------- 100% | Mutant Dominant Class ---------------- Mutant | -10/Materials Mutant | -10/Subcaves Mutant | -8/Recycling Resources | -11 -10 -10 -8 ----------- Run | Yrd Mat Sub Rec Matter Collected 522 | 312 . 210 . Remotely . | . . . . Salvage Created 601 | 129 . 472 . Parts 36 | 8 . 28 . Haulers Intercepted . | . . . . Recyclers Shooed . | . . . . Parts Field Recycled . | . . . . Retrieved Matter . | . . . . Parts Self-Destructed 17 | . . 17 . Prevented . | . . . . Kills | -11 -10 -10 -8 ------- Run | Yrd Mat Sub Rec Combat Hostiles Destroyed 13 | . . 13 . Melee 1 | . . 1 . Guns 3 | . . 3 . Cannons 4 | . . 4 . AOE 5 | . . 5 . Classes Destroyed 5 | 2 . 3 . Tunneler 4 | 4 . . . Recycler 1 | 1 . . . Swarmer 3 | . . 3 . Sentry 1 | . . 1 . Subdweller 9 | . . 9 . Best Kill Streak 5 | 5 . 3 . Combat Bots Only 3 | . . 3 . Max Kills in Single Turn 3 | 1 . 3 . Gunslinging . | . . . . Exploded 3 | . . 3 . Melee 1 | . . 1 . Uniques/NPCs Destroyed . | . . . . Combat | -11 -10 -10 -8 -------- Run | Yrd Mat Sub Rec Hostile Shots Fired 64 | . . 58 6 Missed 19 | . . 17 2 Damage Taken 941 | . . 885 56 Core 253 | . . 238 15 Absorbed by Shields . | . . . . Core Remaining (%) 100 | 100 . . . Volleys Fired 56 | 7 . 49 . Largest 2 | 2 . 2 . Hottest 110 | 40 . 110 . Shots Fired 75 | 14 . 61 . Gun 40 | 14 . 26 . Cannon 22 | . . 22 . Launcher 2 | . . 2 . Special 11 | . . 11 . Kinetic 33 | 14 . 19 . Thermal 33 | . . 33 . Explosive . | . . . . Electromagnetic 9 | . . 9 . Robot Hit Streak 13 | 5 . 13 . Robot Miss Streak 1 | 1 . 1 . Penetration Max . | . . . . Secondary Targets . | . . . . Shots Hit Robots 55 | 10 . 41 4 Core Hits 24 | 6 . 18 . Critical Kills . | . . . . Critical Parts Destroyed . | . . . . Critical Strikes . | . . . . Melee Attacks 25 | . . 16 9 Impact . | . . . . Slashing 25 | . . 16 9 Piercing . | . . . . Sneak Attacks 1 | . . . 1 Combat Hostiles . | . . . . Follow-up Attacks . | . . . . Damage Inflicted 1347 | 111 . 1059 177 Guns 393 | 111 . 282 . Cannons 443 | . . 443 . Explosions 258 | . . 258 . Melee 245 | . . 68 177 Ramming 8 | . . 8 . Kinetic 562 | 111 . 451 . Thermal 443 | . . 443 . Explosive . | . . . . Electromagnetic 89 | . . 89 . Impact . | . . . . Slashing 245 | . . 68 177 Piercing . | . . . . Highest Corruption . | . . . . Average Corruption . | . . . . Corruption Purged . | . . . . Corruption Blocked . | . . . . Overload Shots . | . . . . Overflow Damage 33 | . . . 33 Projectiles . | . . . . Explosions . | . . . . Melee 33 | . . . 33 Knockbacks . | . . . . Impact . | . . . . Kinetic . | . . . . Secondary . | . . . . Self-Inflicted Damage 32 | . . 32 . Shots 1 | . . 1 . Rammed 1 | . . 1 . Targets Rammed 1 | . . 1 . Kicked . | . . . . Crushed . | . . . . Highest Temperature 24 | . . 24 . Average Temperature 8 | . . 8 . Received Heat Transfer 147 | . . 138 9 Siege Activations . | . . . . Robots Corrupted . | . . . . Combat Hostiles . | . . . . Parts Fried 1 | . . 1 . Impact Corruptions . | . . . . Robots Melted . | . . . . Combat Hostiles . | . . . . Parts Melted 1 | . . 1 . Heat Transferred 592 | . . 592 . Parts Sabotaged . | . . . . Parts Stolen . | . . . . Parts Stripped . | . . . . Power Chain Reactions . | . . . . Alert | -11 -10 -10 -8 ------- Run | Yrd Mat Sub Rec Peak Influence 59 | 25 16 . 59 Initial 50 | . 16 . 50 Average 15 | 12 7 . 52 Maximum Alert Level . | . . . . Low Security (%) 100 | 100 100 . 100 Level 1 . | . . . . Level 2 . | . . . . Level 3 . | . . . . Level 4 . | . . . . Level 5 . | . . . . High Security . | . . . . Max Security . | . . . . Squads Dispatched . | . . . . Investigation . | . . . . Extermination . | . . . . Reinforcement . | . . . . Assault . | . . . . Garrison . | . . . . Intercept . | . . . . Searches Triggered . | . . . . Construction Impeded . | . . . . Haulers Reinforced . | . . . . Active Scanning Responses . | . . . . Cargo Convoy Interrupts . | . . . . Stealth | -11 -10 -10 -8 --------- Run | Yrd Mat Sub Rec Distress Signals 1 | . . . 1 Communications Jammed . | . . . . Distress Signals . | . . . . Times Spotted 19 | . . 18 1 Peak Tracking Total 6 | . . 6 2 Tactical Retreats 2 | . . 2 . Traps | -11 -10 -10 -8 ------- Run | Yrd Mat Sub Rec Traps Triggered . | . . . . Indirectly . | . . . . Trap Hack Attempts . | . . . . Triggered . | . . . . Disarmed . | . . . . Reprogrammed . | . . . . Reused . | . . . . Traps Extracted . | . . . . Installed . | . . . . Triggered . | . . . . Machines | -11 -10 -10 -8 ---------- Run | Yrd Mat Sub Rec Machines Disabled . | . . . . Max in Single Turn . | . . . . Machines Repaired . | . . . . Machines Dismantled . | . . . . Machines Sabotaged . | . . . . Overloaded Fab Kills . | . . . . Hacking | -11 -10 -10 -8 --------- Run | Yrd Mat Sub Rec Machines Accessed 3 | . 1 1 1 Terminals 2 | . 1 . 1 Fabricators . | . . . . Repair Stations . | . . . . Recycling Units . | . . . . Scanalyzers . | . . . . Garrison Access . | . . . . Total Hacks 11 | . 6 3 2 Successful 6 | . 2 3 1 Failed 4 | . 3 . 1 Catastrophic . | . . . . Database Lockouts 1 | . 1 . . Manual 5 | . 3 . 2 Terminals 8 | . 6 . 2 Fabricators . | . . . . Repair Stations . | . . . . Recycling Units . | . . . . Scanalyzers . | . . . . Garrison Access . | . . . . Terminal Hacks 6 | . 2 3 1 Record 3 | . . 3 . Robot Analysis 1 | . 1 . . Prototype ID Bank 1 | . 1 . . Zone Layout 1 | . . . 1 Fabricator Hacks . | . . . . Repair Station Hacks . | . . . . Recycling Unit Hacks . | . . . . Scanalyzer . | . . . . Garrison Access Hacks . | . . . . Unauthorized Hacks . | . . . . Terminals . | . . . . Fabricators . | . . . . Repair Stations . | . . . . Recycling Units . | . . . . Scanalyzers . | . . . . Garrison Access . | . . . . Data Cores Recovered . | . . . . Used . | . . . . Hacking Detections 2 | . 1 . 1 Full Trace Events . | . . . . Feedback Events . | . . . . Feedback Blocked . | . . . . Robot Schematics Acquired . | . . . . Robots Built . | . . . . Authchips . | . . . . Time . | . . . . Total Robot Build Rating . | . . . . Part Schematics Acquired . | . . . . Parts Built . | . . . . Authchips . | . . . . Time . | . . . . Total Part Build Rating . | . . . . Parts Repaired . | . . . . Time . | . . . . Parts Recycled . | . . . . Recycled Matter . | . . . . Retrieved Matter . | . . . . Retrieved Components . | . . . . Parts Scanalyzed . | . . . . Part Schematics Acquired . | . . . . Parts Damaged . | . . . . Bothacking | -11 -10 -10 -8 ------------ Run | Yrd Mat Sub Rec Used RIF Installer . | . . . . Robots Hacked . | . . . . Non-combat . | . . . . Combat . | . . . . Robot Hacks Applied . | . . . . Relay Couplers Released . | . . . . Fabnet Peak Effective % . | . . . . Robots Rewired . | . . . . Allies Hacked . | . . . . Hacks Repelled . | . . . . Allies | -11 -10 -10 -8 -------- Run | Yrd Mat Sub Rec Total Allies . | . . . . Largest Group . | . . . . Highest-Rated Group . | . . . . Highest-Rated Ally . | . . . . Total Orders . | . . . . Ally Attacks . | . . . . Total Damage . | . . . . Kills . | . . . . Allies Corrupted . | . . . . Allies Melted . | . . . . Intel | -11 -10 -10 -8 ------- Run | Yrd Mat Sub Rec Robot Analysis Total 1 | . 1 . . Derelict Logs Recovered 3 | . . 3 . Drone Launches . | . . . . Drone Recoveries . | . . . . Exploration | -11 -10 -10 -8 ------------- Run | Yrd Mat Sub Rec Turns Passed 2904 | 146 824 1759 175 Spaces Moved 1328 | 70 72 1063 123 Core 3 | 3 . . . Treads 925 | 67 72 740 46 Legs . | . . . . Wheels 400 | . . 323 77 Hover . | . . . . Flight . | . . . . Fastest Speed 50 | 50 160 110 110 Average Speed 144 | 155 160 144 128 Slowest Speed 160 | 160 160 160 160 Overloaded Moves . | . . . . Propulsion Burnouts . | . . . . Robots Hopped . | . . . . Cave-ins Triggered . | . . . . Exploration Rate (%) 24 | 4 10 52 30 Regions Visited 3 Branch Regions 2 Pre-discovered Areas . | . . . . Known Exits Taken 1 | . . 1 . Unknown Exits Taken 2 | 1 1 . . Scrap Searched 2 | . . 2 . Spaces Dug 9 | . . 5 4 Terrain Destroyed 36 | . . 32 4 Melee 8 | . . 4 4 Projectile 6 | . . 6 . AOE 22 | . . 22 . Terrain Rammed . | . . . . Walls Destroyed . | . . . . Machines Disabled . | . . . . Actions | -11 -10 -10 -8 --------- Run | Yrd Mat Sub Rec Total 2186 | 91 781 1182 132 Wait 735 | . 710 25 . Move 1326 | 69 71 1063 123 Hop . | . . . . Pick Up 17 | 8 . 9 . Fast Attach 7 | 5 . 2 . Attach 5 | 2 . 3 . Detach 1 | . . 1 . Swap 8 | . . 8 . Drop 6 | . . 6 . Fire 56 | 7 . 49 . Melee 25 | . . 16 9 Ram . | . . . . Kick . | . . . . Crush . | . . . . Escape Stasis . | . . . . Rewire . | . . . . Trap . | . . . . Miscellaneous . | . . . . Route ------- -11/Scrapyard -10/Materials -10/Subcaves (discovered 3 exits: [*Mat x2] / *Rec) -8/Recycling History --------- Turn | Location | Event 71 | -11/Scrapyard | Discovered new exit (range 13) 147 | -11/Scrapyard | Entered Materials 200 | -10/Materials | Central database locked down 300 | -10/Materials | Build established: Mutant 950 | -10/Materials | Discovered new exit (range 8) 971 | -10/Materials | Entered Subcaves 999 | -10/Subcaves | Learned Materials security intel 1096 | -10/Subcaves | Ambushed by Subdwellers from Twisted Machinery 1561 | -10/Subcaves | Discovered new exit (range 5) 1563 | -10/Subcaves | Shifting Twisted Machinery released Sub. Shrapnel Launcher 1591 | -10/Subcaves | Shifting Twisted Machinery released Sub. Beam Cannon 1628 | -10/Subcaves | Visited Clippyterm 1633 | -10/Subcaves | Learned Factory fabricator intel 1895 | -10/Subcaves | A swath of the cavern ceiling suddenly collapsed 1952 | -10/Subcaves | Identified exit to Recycling 2029 | -10/Subcaves | Shifting Twisted Machinery released Barrage Gun 2036 | -10/Subcaves | Shifting Twisted Machinery released Battle Rifle 2055 | -10/Subcaves | Ambushed by Subdwellers from Twisted Machinery 2067 | -10/Subcaves | Shifting Twisted Machinery released Sub. Machine Gun 2071 | -10/Subcaves | Discovered new exit (range 10) 2101 | -10/Subcaves | A swath of the cavern ceiling suddenly collapsed 2127 | -10/Subcaves | Learned 8 Materials zone layouts 2293 | -10/Subcaves | Core integrity fell below 50% 2311 | -10/Subcaves | Core integrity fell below 20% 2730 | -10/Subcaves | Entered Recycling 2905 | -8/Recycling | Destroyed by Y-45 Defender with Heavy Assault Rifle Last Messages --------------- 02310_ Lgt. Treads destroyed. 02311_ 1T-721(R) destroyed. 02320_ Structural Scanner destroyed. 02329_ Destroyed Scrap Shield. 02331_ ZL-NFQ(R) destroyed. 02341_ Acquired Sub. Monowheel. 02356_ Acquired 10 matter. 02730_ Slammed into S-10 Pest. LOCATION=RECYCLING GOAL=ESCAPE 02797_ U-05 Engineer builds a Wall. 02822_ Sub. Monowheel shoots sparks and powers down. 02884_ Connecting with Terminal... >>Layout(Zone) Retrieving Zone 3X layout... Downloaded map data. 02895_ Sneak attack on R-06 Scavenger. 02895_ Destroyed Lgt. Ion Engine. 02896_ R-06 Scavenger sends out distress signal. 02899_ Ion Engine destroyed. Map ----- +----------------------------------------------------+ | ?????????????????????????????????????????????? | | ?????????????????????????????????????????????? | | ?????????????????????????????????????????????? | | ?????????????????????????????????????????????? | | ?????????????????????????????????????????????? | | ?????????????????????????????????????????????? | | ?????????????????????????????????????????????? | | ?????????????????????????????????????????????? | | ?????????????????????????????????????????????? | | ???????????????????????????????????# #?????? | | ????????????????????? ?????????????# # ????? | | ????????????????????? ?????????????# # ????? | | ????????????????????? ?????????????+ # ?"? | | ????????????????????? ?????????????# # "" | | ????????????????????? ?????????????# # "? | | ??????????# # ##### ???????# + ? | | ??????????# # #???# ???????# # "" ?? | | ??????????# # #???##???????# # "T ?? | | ??????????# # #????????????# # ""??? | | ??????????# # #????????????# # ??? | | ??????????########### ######???????# ##+#### | | ????????????????????# # #???????# ##"" | | ????????????????????# # #???????# ##"Y | | ?????????##########?# # #???##### | | ?????????# #?# # #???#|| # #### | | ?????????# """ ###@# #?###|| # ####??? | | ?????????# """ + Y #?# #?????? | | ?????????# """ ### #/ ! #?# ######+##?????? | | ?????????# #?# #r ]#?# #???? ??????? | | ?????????# #?# # Y| #?# #???? ??????? | | ?????????# "T" #?# # a#?# #??? ?????? | | ?????????# """ #?# # %#?# #??? ?????? | | ?????????# #?# ######?# #?? ????? | | ?????????####+#####?# #??????# #?? ????? | | ???????????# ###### ######## ## ???? | | ???????????# + ???? | | ???????????# ######+#####+##### ??? | | ???????????####### #??# ??? | | ????????????????# #??# ?? | | ????????????????## #??# ?? | | ?????????????????# #???##### ###???? | | ?????????????????#############????????#??????? | | ?????????????????????????????????????????????? | | ?????????????????????????????????????????????? | | | | | | | | | | | | | +----------------------------------------------------+ Best States ------------- Heat Dissipation 25 Energy Generation 10 Energy Capacity 250 Matter Stores 300 Matter Capacity 300 Sight Range 16 Terrain Scan Density 10 Evasion (%) 40 Recoil Reduction 2 Item Schematics ----------------- None Robot Schematics ------------------ None Fabricated ------------ Nothing Alien Tech Used ----------------- None Achievements -------------- None Challenges ------------ None Game ------ Seed MyomerTripodShockpuncher Manual? 0 Play Time 00:09:46 Cumulative 768.2 hours Start 2024.08.07 @ 15:56:21 End 2024.08.07 @ 16:05:15 Sessions 1 Manual Loads 0 Difficulty Rogue Special Mode None Game No. 740 Rogue 740 Adventurer 0 Explorer 0 Win Type - Total 39 Types 14/4/11/2/0/0/5/2/1 Lore% 69 Gallery% 89 Achievement% 84 Wizard Run 0 Options --------- Layout 0 ASCII 0 Keyboard 0 Movement Numpad Keybinds 0 Fullscreen 1 Font 18/Smallcaps Map View 76x50 Zoom Use 0% Tactical HUD 1 Map Filters NONE Filters NONE Steam 1 RUN: 7c9c843a-bbf2-44cb-9ab0-0152c99f9dc7